Cogmind - Beta 17 @@@ ROGUE MODE // 2026.07.23 @ 20:20:14 Player: Akl Result: Destroyed by G-34 Mercenary with Small Laser Performance ------------- Evolutions (1) 500 Regions Visited (3) 600 Robots Destroyed (18) 90 Value Destroyed (331) 331 Prototype IDs (0) 0 Alien Tech Used (0) 0 Bonus (0) 0 TOTAL SCORE: 1521 Bonus ------- None Cogmind --------- Core Integrity 0/400 Matter 126/300 Energy 99/100 System Corruption 0% Temperature Cool (6) Movement Core (50) Location -9/Storage Parts ------- > --- POWER (1) -------- (None) > --- PROPULSION (4) --- (None) > --- UTILITY (2) ------ (None) > --- WEAPON (2) ------- (None) > --- INVENTORY (5) ---- Salvage Targeting Computer Targeting Computer Light Assault Rifle Rocket Launcher Plasma Cutter Peak State ------------ > --- POWER ------------ Light Ion Engine > --- PROPULSION ------- VTOL Module VTOL Module VTOL Module VTOL Module > --- UTILITY ---------- Improved Terrain Scanner Seismic Detector > --- WEAPON ----------- Assault Rifle Rocket Launcher > --- INVENTORY -------- Assault Rifle Plasma Cutter [Rating: 16] Favorites ----------- Power Light Ion Engine Engine Light Ion Engine Propulsion VTOL Module Leg Aluminum Leg Flight Unit VTOL Module Utility Improved Terrain Scanner Device Improved Terrain Scanner Weapon Assault Rifle Ballistic Gun Assault Rifle Launcher Rocket Launcher Special Weapon Plasma Cutter Build | -11 -10 -9 -9 ------- Run | Yrd Mat Mat Sto Slots Evolved 2 | . . 2 . Power . | . . . . Propulsion 2 | . . 2 . Utility . | . . . . Weapon . | . . . . Parts Attached 16 | 4 5 3 4 Power 3 | . 1 . 2 Engine 3 | . 1 . 2 Core . | . . . . Reactor . | . . . . Propulsion 7 | 2 2 2 1 Treads . | . . . . Leg 2 | 2 . . . Wheel . | . . . . Hover . | . . . . Flight 5 | . 2 2 1 Utility 2 | . 2 . . Device 2 | . 2 . . Storage . | . . . . Processor . | . . . . Hackware . | . . . . Protection . | . . . . Artifact . | . . . . Weapon 4 | 2 . 1 1 Energy Gun . | . . . . Energy Cannon . | . . . . Ballistic Gun 2 | 2 . . . Ballistic Cannon . | . . . . Launcher 1 | . . 1 . Special Weapon 1 | . . . 1 Impact Weapon . | . . . . Slashing Weapon . | . . . . Piercing Weapon . | . . . . Special Melee Weapon . | . . . . Unidentified Prototypes . | . . . . Parts Lost 10 | . . . 10 Power 2 | . . . 2 Propulsion 5 | . . . 5 Utility 2 | . . . 2 Weapon 1 | . . . 1 Highest Loss Streak 6 | . . . 6 To Critical Strikes . | . . . . Average Backups 3 | 2 4 2 4 Power . | . . . . Propulsion . | . . . . Utility . | . 1 . . Weapon 1 | 1 1 . 2 Tool/Special . | . . . . Unused Backups 3 | . . . 3 Power . | . . . . Propulsion . | . . . . Utility 2 | . . . 2 Weapon 1 | . . . 1 Tool/Special . | . . . . Average Slot Usage (%) 75 | . 58 97 73 Engine 8 | . 6 11 8 Leg 1 | . 12 . . Flight 28 | . 14 42 28 Device 17 | . 6 20 19 Ballistic Gun 15 | . 20 17 13 Launcher 2 | . . 4 2 Peak Build Rating 16 | 4 11 16 16 Average Rating 9 | 2 7 15 10 On Entrance 7 | . 3 10 16 Avg Prop Armor Cover (%) 9 | 25 25 3 3 Naked Turns 18 | . . . 18 Heaviest Build 11 | 4 8 11 11 Greatest Support 16 | 3 8 12 16 Greatest Overweight (x) 1 | 1 . . 1 Average Overweight (x) . | . . . . Largest Inventory Capacity 5 | 5 5 5 5 Average Capacity 5 | 5 5 5 5 Most Carried 5 | 5 5 4 5 Average Carried 3 | 2 3 2 4 Final Capacity 5 | 5 5 5 5 Final Carried 5 | 5 4 4 5 Class Distribution -------------------- 58% | Sprinter 41% | Mutant Dominant Class ---------------- Mutant | -10/Materials Sprinter | -9/Materials Sprinter | -9/Storage Resources | -11 -10 -9 -9 ----------- Run | Yrd Mat Mat Sto Matter Collected 543 | 324 . 102 117 Remotely . | . . . . Salvage Created 456 | 144 . 14 298 Parts 36 | 10 . 5 21 Haulers Intercepted 1 | . . . 1 Recyclers Shooed . | . . . . Parts Field Recycled . | . . . . Retrieved Matter . | . . . . Parts Self-Destructed . | . . . . Prevented . | . . . . Parts Restored . | . . . . Kills | -11 -10 -9 -9 ------- Run | Yrd Mat Mat Sto Combat Hostiles Destroyed 10 | . . 4 6 Guns 3 | . . . 3 AOE 7 | . . 4 3 Classes Destroyed 7 | 2 . 1 4 Tunneler 2 | 2 . . . Hauler 1 | . . . 1 Recycler 2 | 1 . . 1 Operator 1 | . . . 1 Watcher 2 | . . . 2 Swarmer 7 | . . 4 3 Sentry 3 | . . . 3 Best Kill Streak 4 | 3 . 4 4 Combat Bots Only 4 | . . 4 3 Max Kills in Single Turn 3 | 1 . 3 2 Gunslinging . | . . . . Exploded 3 | . . 3 2 Melee . | . . . . Uniques/NPCs Destroyed . | . . . . Combat | -11 -10 -9 -9 -------- Run | Yrd Mat Mat Sto Hostile Shots Fired 124 | . . 9 115 Missed 47 | . . 4 43 Hits 77 | . . 5 72 Melee 1 | . . . 1 Projectile 76 | . . 5 71 Critical Strikes 3 | . . . 3 Damage Taken 983 | . . 48 935 Core 409 | . . . 409 Absorbed by Shields 41 | . . . 41 Core Remaining (%) 100 | 100 100 . . Volleys Fired 55 | 18 2 2 33 Largest 2 | 1 2 2 2 Hottest 53 | 20 40 53 40 Shots Fired 73 | 18 4 3 48 Gun 58 | 18 4 1 35 Cannon . | . . . . Launcher 13 | . . 2 11 Special 2 | . . . 2 Kinetic 58 | 18 4 1 35 Thermal 2 | . . . 2 Explosive 13 | . . 2 11 Electromagnetic . | . . . . Robot Hit Streak 13 | 3 3 . 13 Robot Miss Streak 4 | 4 1 3 3 Penetration Max . | . . . . Secondary Targets . | . . . . Shots Hit Robots 39 | 10 3 . 26 Core Hits 28 | 4 1 3 20 Critical Kills . | . . . . Critical Parts Destroyed . | . . . . Critical Strikes . | . . . . Melee Attacks . | . . . . Impact . | . . . . Slashing . | . . . . Piercing . | . . . . Sneak Attacks . | . . . . Combat Hostiles . | . . . . Follow-up Attacks . | . . . . Damage Inflicted 1355 | 143 24 249 939 Guns 457 | 143 24 . 290 Cannons . | . . . . Explosions 898 | . . 249 649 Melee . | . . . . Ramming . | . . . . Kinetic 457 | 143 24 . 290 Thermal . | . . . . Explosive 898 | . . 249 649 Electromagnetic . | . . . . Impact . | . . . . Slashing . | . . . . Piercing . | . . . . Highest Corruption . | . . . . Average Corruption . | . . . . Corruption Purged . | . . . . Corruption Blocked . | . . . . Overload Shots . | . . . . Overflow Damage 43 | . . 28 15 Projectiles . | . . . . Explosions 43 | . . 28 15 Melee . | . . . . Knockbacks . | . . . . Impact . | . . . . Kinetic . | . . . . Secondary . | . . . . Self-Inflicted Damage . | . . . . Shots . | . . . . Rammed . | . . . . Targets Rammed . | . . . . Kicked . | . . . . Crushed . | . . . . Highest Temperature 19 | . . . 19 Average Temperature 4 | . . . 4 Received Heat Transfer 368 | . . 6 362 Siege Activations . | . . . . Martial Activations . | . . . . Shielding Activations . | . . . . Robots Disrupted . | . . . . Combat Hostiles . | . . . . Robots Corrupted . | . . . . Combat Hostiles . | . . . . Parts Fried . | . . . . Impact Corruptions . | . . . . Robots Melted . | . . . . Combat Hostiles . | . . . . Parts Melted . | . . . . Heat Transferred . | . . . . Parts Sabotaged . | . . . . Parts Stolen . | . . . . Parts Stripped . | . . . . Power Chain Reactions . | . . . . Alert | -11 -10 -9 -9 ------- Run | Yrd Mat Mat Sto Maximum Alert Level 2 | . . . 2 Low Security (%) 52 | 100 100 100 15 Level 1 36 | . . . 63 Level 2 11 | . . . 20 Level 3 . | . . . . Level 4 . | . . . . Level 5 . | . . . . High Security . | . . . . Max Security . | . . . . Peak Influence 437 | 5 8 161 437 Initial 63 | . 3 . 63 Average 180 | 1 3 60 301 Influence Increases 736 | 15 15 181 525 Destroy 0b10 Robot/C 200 | . . 80 120 Destroy 0b10 Robot/NC 40 | 15 . . 25 Destroy Leader 56 | . . 10 46 Successful Hack 30 | . . 18 12 Disable Machine 75 | . . 15 60 Destroy Structure 95 | . . 13 82 Partial Spotted 90 | . 15 45 30 Lose Combat Pursuer 150 | . . . 150 Influence Decreases 388 | 10 20 30 328 Entered New Map 90 | . 2 . 88 Time Decay 198 | 10 18 30 140 Lost Part 100 | . . . 100 Squads Dispatched 3 | . . . 3 Investigation 1 | . . . 1 Extermination . | . . . . Reinforcement 1 | . . . 1 Assault . | . . . . Garrison 1 | . . . 1 Intercept . | . . . . Searches Triggered . | . . . . Construction Impeded . | . . . . Haulers Reinforced . | . . . . Active Scanning Responses . | . . . . Cargo Convoy Interrupts . | . . . . Stealth | -11 -10 -9 -9 --------- Run | Yrd Mat Mat Sto Distress Signals 2 | . 1 . 1 Communications Jammed . | . . . . Distress Signals . | . . . . Times Spotted 35 | . 2 7 26 Peak Tracking Total 7 | . 4 6 7 Tactical Retreats 6 | . . . 6 Traps | -11 -10 -9 -9 ------- Run | Yrd Mat Mat Sto Traps Triggered 1 | . . . 1 Indirectly . | . . . . Trap Hack Attempts . | . . . . Triggered . | . . . . Disarmed . | . . . . Reprogrammed . | . . . . Reused . | . . . . Traps Extracted . | . . . . Installed . | . . . . Triggered . | . . . . Machines | -11 -10 -9 -9 ---------- Run | Yrd Mat Mat Sto Machines Disabled 5 | . . 1 4 Max in Single Turn 1 | . . 1 1 Machines Repaired . | . . . . Machines Dismantled . | . . . . Machines Sabotaged . | . . . . Overloaded Fab Kills . | . . . . Hacking | -11 -10 -9 -9 --------- Run | Yrd Mat Mat Sto Machines Accessed 7 | . . 2 5 Terminals 7 | . . 2 5 Fabricators . | . . . . Repair Stations . | . . . . Recycling Units . | . . . . Scanalyzers . | . . . . Garrison Access . | . . . . Total Hacks 13 | . . 4 9 Successful 6 | . . 3 3 Failed 7 | . . 1 6 Catastrophic 1 | . . 1 . Database Lockouts . | . . . . Manual 7 | . . 3 4 Terminals 13 | . . 4 9 Fabricators . | . . . . Repair Stations . | . . . . Recycling Units . | . . . . Scanalyzers . | . . . . Garrison Access . | . . . . Terminal Hacks 3 | . . 1 2 Open Door 2 | . . . 2 Zone Layout 1 | . . 1 . Fabricator Hacks . | . . . . Repair Station Hacks . | . . . . Recycling Unit Hacks . | . . . . Scanalyzer . | . . . . Garrison Access Hacks . | . . . . Unauthorized Hacks 3 | . . 2 1 Terminals 3 | . . 2 1 Botnet 3 | . . 2 1 Fabricators . | . . . . Repair Stations . | . . . . Recycling Units . | . . . . Scanalyzers . | . . . . Garrison Access . | . . . . Data Cores Recovered . | . . . . Used . | . . . . Hacking Detections 4 | . . . 4 Full Trace Events 1 | . . . 1 Feedback Events . | . . . . Feedback Blocked . | . . . . Robot Schematics Acquired . | . . . . Robots Built . | . . . . Authchips . | . . . . Time . | . . . . Total Robot Build Rating . | . . . . Part Schematics Acquired . | . . . . Parts Built . | . . . . Authchips . | . . . . Time . | . . . . Total Part Build Rating . | . . . . Part Studies Acquired . | . . . . Parts Repaired . | . . . . Time . | . . . . Parts Recycled . | . . . . Recycled Matter . | . . . . Retrieved Matter . | . . . . Retrieved Components . | . . . . Parts Scanalyzed . | . . . . Part Schematics Acquired . | . . . . Parts Damaged . | . . . . Bothacking | -11 -10 -9 -9 ------------ Run | Yrd Mat Mat Sto Used RIF Installer . | . . . . Robots Hacked . | . . . . Non-combat . | . . . . Combat . | . . . . Robot Hacks Applied . | . . . . Relay Couplers Released . | . . . . Fabnet Peak Effective % . | . . . . Robots Rewired . | . . . . Allies Hacked . | . . . . Hacks Repelled . | . . . . Allies | -11 -10 -9 -9 -------- Run | Yrd Mat Mat Sto Total Allies . | . . . . Largest Group . | . . . . Highest-Rated Group . | . . . . Highest-Rated Ally . | . . . . Total Orders . | . . . . Ally Attacks . | . . . . Total Damage . | . . . . Kills . | . . . . Allies Corrupted . | . . . . Allies Melted . | . . . . Intel | -11 -10 -9 -9 ------- Run | Yrd Mat Mat Sto Active Infowar (turns) 369 | . 31 69 269 Terrain 351 | . 31 69 251 Seismic 341 | . 5 67 269 Robot Analysis Total . | . . . . Derelict Logs Recovered . | . . . . Drone Launches . | . . . . Drone Recoveries . | . . . . Exploration | -11 -10 -9 -9 ------------- Run | Yrd Mat Mat Sto Turns Passed 515 | 97 56 69 293 Spaces Moved 806 | 85 85 164 472 Core 172 | 85 37 . 50 Treads . | . . . . Legs . | . . . . Wheels . | . . . . Hover . | . . . . Flight 634 | . 48 164 422 Fastest Speed 27 | 50 32 29 27 Average Speed 35 | 51 39 29 34 Slowest Speed 112 | 100 50 29 112 Overloaded Moves . | . . . . Propulsion Burnouts . | . . . . Robots Hopped 10 | . 1 . 9 Potential Cave-ins . | . . . . Cave-ins Triggered . | . . . . Exploration Rate (%) 29 | 3 20 21 72 Regions Visited 3 Branch Regions 1 Pre-discovered Areas . | . . . . Known Exits Taken . | . . . . Unknown Exits Taken 3 | 1 1 1 . Scrap Searched . | . . . . Spaces Dug . | . . . . Terrain Destroyed 98 | . . 14 84 Melee . | . . . . Projectile . | . . . . AOE 98 | . . 14 84 Terrain Rammed . | . . . . Walls Destroyed . | . . . . Machines Disabled . | . . . . Actions | -11 -10 -9 -9 --------- Run | Yrd Mat Mat Sto Total 946 | 120 102 181 543 Wait 35 | . 4 9 22 Move 786 | 84 82 163 457 Hop 7 | . 1 . 6 Pick Up 17 | 7 3 3 4 Fast Attach 3 | 1 2 . . Attach 17 | 6 4 3 4 Detach 7 | 4 1 . 2 Swap 5 | . . 1 4 Drop 6 | . 3 . 3 Fire 55 | 18 2 2 33 Melee . | . . . . Ram . | . . . . Kick . | . . . . Crush . | . . . . Escape Stasis 8 | . . . 8 Rewire . | . . . . Trap . | . . . . Miscellaneous . | . . . . Route ------- -11/Scrapyard -10/Materials -9/Materials (discovered 2 exits: [*Min] / *Sto) -9/Storage (discovered 1 exit: [Rec]) History --------- Turn | Location | Event 14 | -11/Scrapyard | Discovered new exit (range 15) 98 | -11/Scrapyard | Entered Materials 152 | -10/Materials | Discovered new exit (range 8) 154 | -10/Materials | Entered another Materials area 154 | -9/Materials | Evolved 2 slots: Propulsion x2 189 | -9/Materials | Discovered new exit (range 13) 223 | -9/Materials | Discovered new exit (range 12) 223 | -9/Materials | Entered Storage 229 | -9/Storage | Garrison activated, responded to threat 379 | -9/Storage | Lost 3 parts (1p2n) 400 | -9/Storage | Discovered new exit (range 15) 480 | -9/Storage | Core integrity fell below 50% 493 | -9/Storage | Core integrity fell below 20% 516 | -9/Storage | Destroyed by G-34 Mercenary with Small Laser Last Messages --------------- 00481_ Triggered Stasis Trap. 00481_ A bubble of rippling energy engulfs the area. 00481_ Field strength at 94. 00482_ Field strength at 88. 00483_ Field strength at 79. 00484_ Field strength at 61. 00485_ Field strength at 52. 00486_ Field strength at 46. 00486_ VTOL Module destroyed. 00486_ Critical hit (Burn: +27). 00487_ Field strength at 36. 00488_ Field strength at 30. 00489_ Field strength at 21. 00490_ Stasis field depleted. 00492_ Seismic Detector destroyed. 00492_ Critical hit (Burn: +37). 00494_ K-01 Serf cleans the Terminal. 00497_ Critical hit (Burn: +37). 00498_ Lgt. Ion Engine destroyed. Map ----- +----------------------------------------------------+ | | | | | | | | | | | | | ?????????????????##############????## | | ?????????????????# #??? | | ?????????????????# [ [ #???" | | ?????????????????# ] #??"" | | ?????????????????# ] ##""" | | ????????#??#?????# ! ## | | ??????????????"####+##########?#""" | | ?????????#????" #????????#""" | | ????????????